bitfinex/quotes_SOLUSD_20250803
["timestamp","ask_amount","ask_price","bid_price","bid_amount"]
[1754179200769,0.03,158.77,158.76,3.245332]
[1754179200966,0.03,158.79,158.76,3.245332]
[1754179201170,0.03,158.79,158.76,2.525332]
[1754179201357,0.03,158.79,158.77,0.65]
[1754179201555,0.03,158.79,158.78,16.78468397]
[1754179201772,0.03,158.79,158.76,2.525332]
[1754179202072,0.7,158.78,158.76,2.525332]
[1754179202647,0.03,158.79,158.77,0.65]
[1754179203054,0.03,158.79,158.78,0.65]
[1754179204451,0.73,158.79,158.76,2.525332]
[1754179205558,0.7872528,158.78,158.76,2.525332]
[1754179205771,0.7,158.77,158.76,2.525332]
[1754179208783,1.48730238,158.77,158.75,0.06]
[1754179208965,5.0397426,158.76,158.75,0.06]
[1754179209165,22.52442657,158.76,158.75,0.06]
[1754179209389,30.46522662,158.76,158.75,0.06]
[1754179210271,22.52442657,158.76,158.75,0.06]
[1754179213483,31.19839788,158.76,158.75,0.06]
[1754179213683,31.19839788,158.76,158.72,0.06]
[1754179213684,31.91198217,158.75,158.72,0.06]
[1754179213855,22.08711121,158.73,158.72,0.06]
[1754179214060,34.28030189,158.73,158.72,0.06]
[1754179214271,29.67787465,158.73,158.72,0.06]
[1754179214467,34.84954318,158.73,158.72,0.06]
[1754179214666,83.65468397,158.71,158.7,0.06]
[1754179214870,111.34689606,158.71,158.7,0.06]
[1754179215071,112.04689606,158.71,158.7,0.06]
[1754179215280,122.61116403,158.71,158.7,0.06]
[1754179215486,121.82356401,158.71,158.7,0.06]
[1754179216078,128.12436421,158.71,158.7,0.06]
[1754179216361,117.56009624,158.71,158.7,0.06]
[1754179216560,65.50215569,158.71,158.7,0.06]
[1754179216793,108.66527602,158.71,158.7,0.06]
[1754179217569,103.39246079,158.71,158.7,0.06]
[1754179218685,105.92082579,158.71,158.7,0.06]
[1754179219919,89.17844864,158.71,158.7,0.06]
[1754179221065,72.39376467,158.71,158.7,0.06]
[1754179221788,89.17844864,158.71,158.7,0.06]
[1754179221962,84.92605801,158.71,158.7,0.06]
[1754179222168,88.2160685,158.71,158.7,0.06]
[1754179224491,43.2960685,158.71,158.7,0.06]
[1754179224674,88.2360685,158.71,158.7,0.06]
[1754179228393,43.2960685,158.71,158.7,0.06]
[1754179228599,88.2160685,158.71,158.7,0.06]
[1754179232604,92.41027259,158.71,158.7,0.06]
[1754179232918,121.35027259,158.71,158.7,0.06]
[1754179233083,132.89669704,158.71,158.7,0.06]
[1754179233298,45.72468397,158.69,158.68,0.06]
[1754179233601,117.5696559,158.69,158.68,0.06]
[1754179233806,123.50291878,158.69,158.68,0.06]
[1754179234115,163.94023775,158.69,158.68,0.06]
[1754179234320,26.78468397,158.64,158.6,0.1]
[1754179234531,16.78468397,158.62,158.6,0.1]
[1754179234829,62.49278055,158.61,158.6,0.1]
[1754179235036,63.18278055,158.61,158.6,0.1]
[1754179235410,71.1235806,158.61,158.6,0.1]
[1754179235915,75.31597025,158.61,158.6,0.1]
[1754179236928,75.31597025,158.61,158.6,0.8]
[1754179236929,17.57278055,158.61,158.6,0.8]
[1754179237231,62.49278055,158.61,158.6,0.8]
[1754179237418,0.78809658,158.61,158.6,0.8]
[1754179237595,44.92,158.62,158.6,0.8]
[1754179238096,44.92,158.63,158.6,0.8]
[1754179238397,0.7880469,158.62,158.6,0.8]
[1754179239508,44.94,158.63,158.6,0.8]
[1754179240423,0.7880469,158.62,158.6,0.8]
[1754179246904,44.92,158.64,158.6,0.8]
[1754179247110,0.78789788,158.65,158.6,0.8]
[1754179247759,44.92,158.67,158.6,0.8]
[1754179248034,45.70779857,158.67,158.6,0.8]
[1754179248243,0.78769928,158.69,158.6,0.8]
[1754179248441,45.70769928,158.69,158.6,0.8]
[1754179253224,4.91065337,158.68,158.6,0.8]
[1754179253427,1.47779857,158.67,158.6,0.8]
[1754179253628,0.69,158.66,158.6,0.8]
[1754179253829,0.78789788,158.65,158.6,0.8]
[1754179254032,0.69,158.64,158.6,0.8]
[1754179254339,0.78799722,158.63,158.6,0.8]
[1754179255218,5.01617239,158.64,158.61,0.7]
[1754179255418,0.78794755,158.64,158.61,0.7]
[1754179256233,5.01649015,158.64,158.61,0.7]
[1754179258242,0.78794755,158.64,158.61,0.7]
[1754179259116,44.9,158.65,158.62,0.7]
[1754179259340,0.78774892,158.68,158.62,0.7]
[1754179259341,45.68774892,158.68,158.62,0.7]
[1754179259551,4.2316824,158.67,158.62,0.7]
[1754179259732,45.68774892,158.68,158.62,0.7]
[1754179259733,44.9,158.68,158.62,0.7]
[1754179259917,4.23170081,158.67,158.62,0.7]
[1754179260125,45.68774892,158.68,158.62,0.7]
[1754179261027,44.9,158.68,158.62,0.7]
[1754179261535,46.40769928,158.69,158.62,0.7]
[1754179261848,4.23186154,158.68,158.62,26.7]
[1754179262050,0.03,158.69,158.63,17.50468397]
[1754179262228,0.03,158.69,158.66,26.0]
[1754179262726,0.03,158.69,158.67,0.72]
[1754179263142,0.03,158.69,158.68,0.72]
[1754179264259,0.03,158.69,158.68,17.50468397]
[1754179264426,0.03,158.69,158.68,43.50468397]
[1754179264625,0.03,158.71,158.69,16.78468397]
[1754179264826,0.03,158.71,158.69,17.50468397]
[1754179265047,0.03,158.72,158.71,42.78468397]
[1754179265654,0.03,158.79,158.71,46.63031215]
[1754179265860,0.03,158.79,158.76,42.78468397]
[1754179266036,0.03,158.79,158.77,0.44701985]
[1754179266236,0.03,158.81,158.8,26.0]
[1754179266541,0.03,158.81,158.8,26.72]
[1754179266744,0.03,158.81,158.8,43.50468397]
[1754179267337,0.03,158.81,158.8,0.72]
[1754179267541,0.03,158.82,158.81,26.0]
[1754179267730,0.03,158.82,158.81,26.44662325]
[1754179268060,0.03,158.82,158.81,43.50468397]
[1754179268240,0.03,158.82,158.77,0.72]
[1754179268556,0.03,158.82,158.75,16.78468397]
[1754179268557,0.68,158.81,158.75,16.78468397]
[1754179268725,0.68,158.81,158.75,26.0]
[1754179268932,0.03,158.82,158.76,0.72]
[1754179269134,1.49705452,158.82,158.75,26.0]
[1754179269329,0.71,158.82,158.73,16.78468397]
[1754179269651,0.71,158.82,158.76,26.72]
[1754179269853,0.03,158.82,158.77,17.50468397]
[1754179270164,0.03,158.82,158.8,26.0]
[1754179270371,0.2,158.92,158.89,26.0]
[1754179270659,0.2,158.92,158.9,16.78468397]
[1754179270872,0.68,159.0,158.9,16.78468397]
[1754179270873,7.47246427,159.07,158.98,26.0]
[1754179271081,7.47246427,159.07,158.95,16.78468397]
[1754179271082,0.03,159.04,159.0,16.78468397]
[1754179271280,0.78557063,159.12,159.05,26.0]
[1754179271584,0.78557063,159.12,159.06,26.0]
[1754179271585,0.68,159.12,159.06,26.0]
[1754179271876,0.68,159.15,159.07,16.78468397]
[1754179272078,0.68,159.12,159.07,16.78468397]
[1754179272249,26.0,159.18,159.06,26.0]
[1754179272446,0.68,159.11,159.07,26.0]
[1754179272650,0.78532386,159.17,159.07,26.0]
[1754179272981,0.68,159.1,159.07,26.0]
[1754179273182,0.68,159.09,159.03,71.7]
[1754179273654,0.2,159.11,159.04,16.78468397]
[1754179273863,0.2,159.11,159.04,17.22468397]
[1754179274445,1.46566939,159.1,159.03,26.0]
[1754179274647,0.68,159.09,158.97,0.44]
[1754179274957,0.68,159.09,158.96,46.16]
[1754179274958,26.78576816,159.08,158.96,46.16]
[1754179275277,0.68,159.07,158.96,46.16]
[1754179275465,0.78586696,159.06,158.96,46.16]
[1754179275649,0.68,159.05,158.96,46.16]
[1754179275853,0.78596579,159.04,158.91,0.44]
[1754179276049,17.46468397,159.03,158.91,0.44]
[1754179276254,26.78596579,159.04,158.91,0.44]
[1754179276255,1.46606464,159.02,158.91,0.44]
[1754179276450,0.2,159.11,158.96,10.0]
[1754179276661,0.2,159.11,159.08,26.0]
[1754179276859,0.88,159.11,158.97,0.44]
[1754179277082,0.88,159.11,159.05,16.78468397]
[1754179277376,0.88,159.11,159.05,26.0]
[1754179277581,0.88,159.11,158.98,46.68432204]
[1754179277582,0.68,159.1,159.01,26.0]
[1754179277770,26.78571877,159.09,158.98,63.02468397]
[1754179277958,0.68,159.08,158.99,16.784684]
[1754179278162,0.68,159.08,158.98,63.02468397]
[1754179278163,0.78581756,159.07,158.93,46.68]
[1754179278359,26.0,159.03,158.94,18.913722]
[1754179278575,1.46606464,159.02,158.95,16.78468397]
[1754179279080,0.68,159.06,158.97,16.78468397]
[1754179279297,0.03,159.1,159.01,16.78468397]
[1754179279298,0.81566939,159.1,159.01,16.78468397]
[1754179279593,0.03,159.1,159.04,26.0]
[1754179279757,0.03,159.1,159.04,0.44]
[1754179279956,0.03,159.1,159.06,16.78468397]
[1754179280370,0.03,159.1,159.08,16.78468397]
[1754179280577,0.03,159.1,159.03,26.0]
[1754179280783,0.03,159.1,159.04,16.78468397]
[1754179281288,0.03,159.1,159.04,17.22468397]
[1754179281454,0.03,159.1,159.04,16.78468397]
[1754179281657,0.03,159.1,159.06,16.78468397]
[1754179281861,0.03,159.1,159.09,26.0]
[1754179282481,0.2,159.11,159.09,28.519765]
[1754179282689,0.2,159.11,159.07,16.78468397]
[1754179282857,0.2,159.11,159.08,2.519764]
[1754179283058,0.2,159.11,159.08,2.929764]
[1754179284262,0.2,159.11,159.08,2.519764]
[1754179284524,0.2,159.11,159.1,26.0]
[1754179286119,0.88,159.11,159.06,46.36]
[1754179286328,0.68,159.1,159.05,2.520241]
[1754179286615,0.68,159.09,159.03,16.78468397]
[1754179286816,0.68,159.09,159.06,26.0]
[1754179286997,0.88,159.11,159.06,26.0]
[1754179287183,0.68,159.1,159.04,2.5204]
[1754179287381,0.78571877,159.09,159.02,46.38]
[1754179287588,0.68,159.08,159.02,46.38]
[1754179288218,0.98562001,159.11,159.02,46.38]
[1754179288219,0.68,159.1,159.02,46.38]
[1754179288400,0.2,159.11,159.05,26.0]
[1754179289308,0.2,159.11,159.09,26.0]
[1754179289487,0.2,159.11,159.06,0.41]
[1754179289693,0.2,159.11,159.06,26.0]
[1754179289982,0.2,159.11,159.06,26.41]
[1754179290610,0.2,159.11,159.03,16.78468397]
[1754179290919,0.68,159.1,159.03,46.85]
[1754179291094,0.78571877,159.09,159.03,46.44]
[1754179291408,0.68,159.1,159.03,46.44]
[1754179291608,0.78571877,159.09,159.03,46.44]
[1754179292522,0.68,159.1,159.03,46.44]
[1754179293600,0.2,159.11,159.04,0.41]
[1754179293994,0.2,159.11,159.06,26.0]
[1754179294193,0.2,159.11,159.06,26.41]
[1754179294724,0.2,159.11,159.07,0.41]
[1754179295391,0.2,159.11,159.08,0.41]
[1754179295589,0.2,159.11,159.09,0.41]
[1754179296622,0.2,159.11,159.08,26.0]
[1754179296921,0.2,159.11,159.08,26.41]
[1754179297110,0.2,159.11,159.09,0.41]
[1754179297284,0.2,159.11,159.1,0.41]
[1754179297918,0.2,159.11,159.1,63.57468397]
[1754179299526,0.2,159.11,159.1,64.0184379]
[1754179299820,0.2,159.11,159.1,74.0184379]
[1754179300117,0.2,159.11,159.1,64.0184379]
[1754179301291,0.2,159.11,159.1,17.6384379]
[1754179301519,0.2,159.11,159.1,64.7184379]
[1754179302030,0.2,159.11,159.1,74.7184379]
[1754179302604,0.7,159.25,159.21,26.0]
[1754179302804,0.2,159.26,159.22,47.16]
[1754179303124,0.9,159.26,159.22,47.16]
[1754179303300,0.2,159.26,159.22,47.16]
[1754179303505,0.7,159.25,159.22,47.16]
[1754179305500,0.7,159.24,159.22,47.16]
[1754179305835,0.2,159.26,159.21,26.0]
[1754179306025,0.2,159.26,159.22,47.3]
[1754179306503,0.2,159.26,159.22,48.02]
[1754179307043,0.2,159.26,159.25,42.78468397]
[1754179307316,0.2,159.26,159.23,26.0]
[1754179307518,0.2,159.26,159.24,47.28]
[1754179307705,0.2,159.26,159.24,48.0]
[1754179308125,0.2,159.26,159.25,0.72]
[1754179308356,0.2,159.26,159.25,20.02175297]
[1754179310224,0.2,159.26,159.25,24.59393857]
[1754179312330,0.2,159.26,159.25,23.87393857]
[1754179312531,0.2,159.26,159.25,19.30175297]
[1754179312760,0.2,159.26,159.25,92.64175297]
[1754179312926,0.2,159.26,159.25,66.64175297]
[1754179313248,0.2,159.26,159.25,92.64175297]
[1754179314354,0.2,159.26,159.25,97.22845547]
[1754179314532,0.2,159.26,159.25,7.1037715]
[1754179314735,0.2,159.26,159.25,54.46378004]
[1754179314940,0.2,159.26,159.25,49.877069]
[1754179315246,0.2,159.26,159.25,54.47081207]
[1754179315629,0.2,159.26,159.25,49.877069]
[1754179315824,0.2,159.26,159.25,2.517069]
[1754179316033,0.9,159.26,159.25,49.857069]
[1754179316229,0.9,159.26,159.25,2.517069]
[1754179316823,0.9,159.26,159.22,47.34]
[1754179317025,0.7,159.25,159.22,47.34]
[1754179317226,0.7,159.24,159.22,47.34]
[1754179317453,0.7,159.24,159.21,18.883958]
[1754179317654,0.78502794,159.23,159.21,18.883958]
[1754179317959,0.7,159.22,159.16,47.32]
[1754179319040,0.78512656,159.21,159.16,47.32]
[1754179319235,0.7,159.2,159.16,47.32]
[1754179319530,0.7852252,159.19,159.16,47.32]
[1754179319759,0.7,159.18,159.16,47.32]
[1754179319926,0.7,159.17,159.16,47.32]
[1754179320333,0.7,159.17,159.09,47.26]
[1754179320534,0.7,159.17,159.1,4.60468287]
[1754179320535,0.7853732,159.16,159.1,4.60468287]
[1754179320854,0.7,159.15,159.1,4.60468287]
[1754179321051,0.68,159.17,159.11,0.66]
[1754179321253,0.68,159.17,159.16,0.06]
[1754179321456,26.78517587,159.2,159.16,0.06]
[1754179321756,0.68,159.2,159.16,0.06]
[1754179322130,0.7852252,159.19,159.16,0.06]
[1754179322767,0.68,159.18,159.16,0.06]
[1754179322931,0.78532386,159.17,159.16,0.06]
[1754179323427,1.46532386,159.17,159.16,0.06]
[1754179324328,0.68,159.17,159.16,0.06]
[1754179324533,1.4652252,159.19,159.16,0.06]
[1754179324957,0.68,159.18,159.16,0.06]
[1754179325352,0.68,159.17,159.16,0.06]
[1754179325562,0.68,159.18,159.16,0.06]
[1754179325752,0.68,159.21,159.16,0.06]
[1754179326066,1.46517587,159.2,159.16,0.06]
[1754179326539,0.68,159.19,159.16,0.06]
[1754179326735,0.78527453,159.18,159.16,0.06]
[1754179327251,43.46468397,159.17,159.14,0.06]
[1754179327460,43.46468397,159.17,159.06,0.1]
[1754179327461,1.4653732,159.16,159.06,0.1]
[1754179327785,26.0,159.14,159.06,0.1]
[1754179328065,26.0,159.05,159.01,18.904188]
[1754179328383,1.46596579,159.04,159.01,18.904188]
[1754179328533,0.78596579,159.04,159.01,18.904188]
[1754179328878,1.46596579,159.04,159.01,18.904188]
[1754179329666,26.0,159.05,159.01,18.904188]
[1754179329837,26.0,159.05,159.01,19.564188]
[1754179330035,0.68,159.05,159.01,18.904188]
[1754179330546,1.46596579,159.04,159.01,18.904188]
[1754179331059,0.68,159.03,159.01,18.904188]
[1754179331685,0.68,159.02,159.01,18.904188]
[1754179332663,43.46468397,159.02,159.01,18.904188]
[1754179332961,26.68,159.02,159.01,18.904188]
[1754179333131,26.0,159.02,158.96,0.66]
[1754179333327,0.78611408,159.01,158.96,0.66]
[1754179333555,26.0,159.02,158.96,0.66]
[1754179333770,0.68,159.04,158.97,0.66]
[1754179333926,26.78591637,159.05,158.97,0.66]
[1754179334333,0.78591637,159.05,158.97,0.66]
[1754179334532,26.78591637,159.05,158.97,0.66]
[1754179334831,26.78591637,159.05,158.94,0.66]
[1754179334832,0.68,159.04,158.94,0.66]
[1754179335029,26.0,159.02,158.92,48.14]
[1754179335338,1.46611408,159.01,158.92,48.14]
[1754179336251,0.68,159.0,158.92,48.14]
[1754179336545,0.78621296,158.99,158.92,48.14]
[1754179336740,0.68,158.98,158.88,17.44468397]
[1754179336929,0.78631188,158.97,158.88,0.66]
[1754179337132,1.46631188,158.97,158.88,0.66]
[1754179337333,1.46631188,158.97,158.88,17.44468397]
[1754179337559,1.46631188,158.97,158.89,0.66]
[1754179337740,1.46621296,158.99,158.89,0.66]
[1754179339347,0.68,158.98,158.89,0.66]
[1754179339550,0.78631188,158.97,158.89,0.66]
[1754179339768,1.46631188,158.97,158.89,0.66]
[1754179340445,0.78621296,158.99,158.89,0.66]
[1754179340766,0.78621296,158.99,158.89,26.66]
[1754179340944,0.78621296,158.99,158.89,26.0]
[1754179341150,0.78621296,158.99,158.9,0.66]
[1754179341344,66.419686,159.03,158.91,16.78468397]
[1754179341345,1.46611408,159.01,158.91,16.78468397]
[1754179341535,1.46611408,159.01,158.92,0.66]
[1754179342769,26.0,159.0,158.92,0.66]
[1754179343062,26.0,158.98,158.89,0.66]
[1754179343262,1.46631188,158.97,158.88,0.06]
[1754179343475,0.68,158.96,158.88,0.06]
[1754179343636,0.78641082,158.95,158.88,0.06]
[1754179344163,1.46641082,158.95,158.88,0.06]
[1754179345866,0.68,158.95,158.88,0.72]
[1754179346166,0.78646029,158.94,158.88,0.06]
[1754179346469,0.68,158.95,158.88,0.72]
[1754179347142,0.78646029,158.94,158.88,0.72]
[1754179347350,0.68,158.93,158.88,0.06]
[1754179348941,0.68,158.92,158.88,0.06]
[1754179349347,0.68,158.91,158.88,0.06]
[1754179349968,0.78641082,158.95,158.88,0.06]
[1754179350150,1.46641082,158.95,158.89,0.66]
[1754179350472,10.0,159.02,158.9,16.78468397]
[1754179350473,0.78611408,159.01,158.9,16.78468397]
[1754179350677,0.68,158.99,158.91,0.66]
[1754179350881,0.78626242,158.98,158.9,26.0]
[1754179351052,0.66,158.97,158.9,26.0]
[1754179351460,0.66,158.97,158.89,0.66]
[1754179351748,0.66,158.97,158.89,0.68]
[1754179351960,0.78636134,158.96,158.89,0.68]
[1754179352164,0.66,158.95,158.88,0.06]
[1754179352473,26.0,158.86,158.79,0.68]
[1754179352653,0.66,158.85,158.79,0.68]
[1754179352863,1.44690588,158.85,158.79,0.68]
[1754179353459,0.78690588,158.85,158.79,0.68]
[1754179353785,26.0,158.86,158.79,0.68]
[1754179353955,0.66,158.88,158.8,16.78468397]
[1754179354156,0.66,158.88,158.81,0.68]
[1754179354488,0.66,158.93,158.82,42.78468397]
[1754179354658,0.66,158.93,158.84,16.78468397]
[1754179355059,26.66,158.93,158.85,0.68]
[1754179356081,1.44655927,158.92,158.81,48.4]
[1754179356385,26.0,158.93,158.81,48.4]
[1754179356386,26.0,158.93,158.85,16.78468397]
[1754179356587,0.66,159.0,158.87,42.78468397]
[1754179356780,0.66,159.0,158.89,16.78468397]
[1754179357098,0.78601521,159.03,158.88,48.80557486]
[1754179357099,0.66,159.03,158.91,16.78468397]
[1754179357294,0.03,159.06,158.95,16.78468397]
[1754179357452,0.03,159.06,158.94,26.0]
[1754179357453,26.81586696,159.06,158.97,16.78468397]
[1754179357653,26.81586696,159.06,158.98,0.68]
[1754179358471,0.66,159.05,158.96,47.68]
[1754179358671,0.78596579,159.04,158.96,47.68]
[1754179358875,0.66,159.03,158.96,47.68]
[1754179359079,0.78606464,159.02,158.96,47.68]
[1754179359291,0.66,159.01,158.96,47.68]
[1754179359611,0.03,159.06,158.97,0.68]
[1754179359766,0.69,159.06,158.97,17.46468397]
[1754179359966,26.0,159.05,158.98,0.68]
[1754179361410,0.03,159.06,158.99,16.78468397]
[1754179361584,0.03,159.06,159.0,0.68]
[1754179364084,0.03,159.06,159.01,16.78468397]
[1754179364285,0.03,159.06,159.02,0.68]
[1754179364587,0.03,159.06,159.03,0.68]
[1754179364806,0.03,159.06,158.99,42.78468397]
[1754179365094,0.03,159.05,159.01,0.68]
[1754179365305,0.66,159.04,158.99,16.78468397]
[1754179365669,0.03,159.05,159.0,0.68]
[1754179365974,0.03,159.05,159.01,0.68]
[1754179366182,0.03,159.05,158.99,16.78468397]
[1754179366572,0.03,159.05,158.98,48.18]
[1754179366773,0.69,159.05,158.98,47.5]
[1754179366987,0.78596579,159.04,158.98,47.5]
[1754179367185,0.66,159.03,158.98,47.5]
[1754179367385,0.78606464,159.02,158.98,47.5]
[1754179367609,0.66,159.01,158.96,0.68]
[1754179367907,0.66,159.0,158.92,64.24468397]
[1754179368282,0.66,159.0,158.93,0.68]
[1754179369688,26.0,158.99,158.92,47.46]
[1754179369900,0.66,159.0,158.92,47.46]
[1754179370407,26.0,158.99,158.92,47.46]
[1754179370609,1.44616352,159.0,158.92,48.14]
[1754179370782,26.0,159.02,158.93,0.68]
[1754179370783,0.78611408,159.01,158.93,0.68]
[1754179371479,26.0,159.0,158.93,0.68]
[1754179372074,27.44606464,159.02,158.93,0.68]
[1754179372278,26.0,158.99,158.93,0.68]
[1754179372678,27.44606464,159.02,158.93,0.68]
[1754179372878,26.0,158.99,158.93,0.68]
[1754179373507,26.66,159.02,158.93,0.68]
[1754179373709,1.44596579,159.04,158.94,16.78468397]
[1754179373909,1.44596579,159.04,158.95,0.68]
[1754179374121,26.0,159.02,158.95,0.68]
[1754179375728,1.44596579,159.04,158.95,0.68]
[1754179375897,26.0,159.03,158.95,0.68]
[1754179376618,26.66,159.03,158.95,0.68]
[1754179376995,0.66,159.02,158.95,0.68]
[1754179380310,0.66,159.04,158.96,16.78468397]
[1754179380521,0.66,159.04,158.97,47.94]
[1754179380716,0.66,159.04,158.98,0.68]
[1754179381417,0.66,159.04,158.97,47.26]
[1754179381621,0.78601521,159.03,158.94,47.22]
[1754179381794,0.68,159.02,158.94,47.22]
[1754179381995,0.78611408,159.01,158.94,47.22]
[1754179382192,0.68,159.0,158.94,47.22]
[1754179382592,0.68,159.0,158.91,17.49468397]
[1754179382800,0.78621296,158.99,158.89,17.49468397]
[1754179383029,0.78621296,158.99,158.9,47.22]
[1754179383030,26.68,158.98,158.9,47.22]
[1754179383202,1.46631188,158.97,158.9,47.22]
[1754179383414,26.0,158.93,158.87,0.06]
[1754179383613,1.46655927,158.92,158.87,0.06]
[1754179383859,0.68,158.91,158.87,0.06]
[1754179384162,0.78665827,158.9,158.87,0.06]
[1754179384335,1.46665827,158.9,158.87,0.06]
[1754179384520,0.78665827,158.9,158.87,0.06]
[1754179384728,0.68,158.89,158.87,0.06]
[1754179385233,0.68,158.91,158.87,0.06]
[1754179385739,0.78665827,158.9,158.87,0.06]
[1754179386152,0.68,158.89,158.87,0.06]
[1754179386612,0.68,158.88,158.87,0.06]
[1754179389923,56.87,158.86,158.73,0.1]
[1754179390112,28.02493724,158.85,158.73,0.1]
[1754179390442,26.0,158.81,158.73,0.1]
[1754179390744,0.78715365,158.8,158.74,0.71]
[1754179390905,17.46468397,158.84,158.75,16.78468397]
[1754179390906,0.68,158.84,158.75,16.78468397]
[1754179391110,0.78700497,158.83,158.73,0.81]
[1754179391319,0.68,158.82,158.73,0.81]
[1754179391514,0.78710408,158.81,158.73,0.81]
[1754179391714,0.78705452,158.82,158.73,0.81]
[1754179391944,0.68,158.8,158.73,0.81]
[1754179392130,0.78720322,158.79,158.73,0.81]
[1754179392351,26.0,158.83,158.74,16.78468397]
[1754179392516,0.78690588,158.85,158.74,16.78468397]
[1754179392517,0.68,158.86,158.75,0.71]
[1754179392837,26.0,158.84,158.76,16.78468397]
[1754179393252,26.68,158.84,158.77,0.71]
[1754179395423,26.68,158.84,158.73,26.1]
[1754179395424,1.46700497,158.83,158.75,26.0]
[1754179395617,0.68,158.82,158.75,26.0]
[1754179395945,0.68,158.82,158.75,26.71]
[1754179396152,0.68,158.82,158.75,0.71]
[1754179397534,0.68,158.82,158.73,0.81]
[1754179397535,0.78710408,158.81,158.73,0.81]
[1754179398021,26.0,158.84,158.74,16.78468397]
[1754179398226,13.29043016,158.92,158.74,16.78468397]
[1754179398227,0.78660877,158.91,158.85,26.0]
[1754179398452,0.68,158.93,158.86,0.71]
[1754179398651,0.78641082,158.95,158.86,26.71]
[1754179398858,0.68,158.96,158.86,26.0]
[1754179399040,0.78641082,158.95,158.87,0.71]
[1754179399238,0.78616352,159.0,158.87,0.71]
[1754179399454,0.68,158.94,158.87,0.71]
[1754179399661,0.78650978,158.93,158.84,0.71]
[1754179399863,0.68,158.92,158.84,0.71]
[1754179400164,0.78660877,158.91,158.84,0.71]
[1754179400366,0.68,158.9,158.83,49.72]
[1754179400574,1.46650978,158.93,158.83,49.72]
[1754179400754,1.46650978,158.93,158.84,0.71]
[1754179400933,0.68,158.92,158.84,0.71]
[1754179401139,0.78660877,158.91,158.84,0.71]
[1754179401339,0.68,158.92,158.84,0.71]
[1754179401655,26.0,158.94,158.84,0.71]
[1754179401856,1.46636134,158.96,158.88,26.0]
[1754179402034,0.68,158.96,158.88,26.0]
[1754179402234,0.68,158.96,158.89,0.71]
[1754179402540,1.46636134,158.96,158.86,26.0]
[1754179402763,26.68,158.95,158.86,26.0]
[1754179402948,1.46646029,158.94,158.85,0.71]
[1754179403153,0.78646029,158.94,158.85,0.71]
[1754179403346,0.68,158.93,158.85,0.71]
[1754179403661,0.68,158.93,158.84,42.78468397]
[1754179403662,0.78655927,158.92,158.84,26.71]
[1754179403874,0.68,158.93,158.85,0.71]
[1754179404052,0.78655927,158.92,158.85,0.71]
[1754179404236,0.78655927,158.92,158.83,49.72]
[1754179404437,0.68,158.91,158.83,49.72]